Cogmind - Beta 15 @@@ ROGUE MODE // 2025.10.14 @ 10:49:04 Player: glitchbuggaming Result: Destroyed by Y-45 Defender with Beam Rifle Performance ------------- Evolutions (2) 1000 Regions Visited (4) 800 Robots Destroyed (28) 140 Value Destroyed (722) 722 Prototype IDs (2) 40 Alien Tech Used (0) 0 Bonus (0) 0 TOTAL SCORE: 2702 Bonus ------- None Cogmind --------- Core Integrity 0/550 Matter 98/300 Energy 238/280 System Corruption 0% Temperature Cool (27) Movement Treading (160) Location -8/Storage Parts ------- > --- POWER (2) -------- Heavy Ion Engine > --- PROPULSION (3) --- Improved Treads > --- UTILITY (3) ------ Improved Heat Sink Advanced Visual Processing Unit > --- WEAPON (3) ------- (None) > --- INVENTORY (5) ---- Hacking Suite Precision Beam Rifle Peak State ------------ > --- POWER ------------ Light Nuclear Core > --- PROPULSION ------- Airjet Airjet Airjet > --- UTILITY ---------- ECM Suite Light Armor Plating Hardlight Generator > --- WEAPON ----------- Precision Beam Rifle Grenade Launcher Mini Grenade Launcher > --- INVENTORY -------- Nuclear Core Armored Treads Improved Heat Sink Precision Beam Rifle [Rating: 25] Favorites ----------- Power Light Ion Engine Engine Light Ion Engine Power Core Light Nuclear Core Propulsion Aluminum Leg Treads Light Treads Leg Aluminum Leg Wheel Wheel Hover Unit Airjet Flight Unit Flight Unit Utility ECM Suite Device ECM Suite Storage Small Storage Unit Processor Advanced Visual Processing Unit Protection Light Armor Plating Weapon Light Assault Rifle Energy Gun Small Laser Energy Cannon Beam Cannon Ballistic Gun Light Assault Rifle Launcher Mini Grenade Launcher Build | -11 -10 -9 -8 -8 ------- Run | Yrd Mat Mat Mat Sto Slots Evolved 4 | . . 2 2 . Power 1 | . . . 1 . Propulsion 1 | . . 1 . . Utility 1 | . . . 1 . Weapon 1 | . . 1 . . Parts Attached 40 | 8 9 15 6 2 Power 7 | 2 1 2 1 1 Engine 5 | 2 1 1 . 1 Core 2 | . . 1 1 . Reactor . | . . . . . Propulsion 17 | 3 5 6 2 1 Treads 7 | . 4 1 1 1 Leg 3 | 2 . . 1 . Wheel 1 | 1 . . . . Hover 5 | . . 5 . . Flight 1 | . 1 . . . Utility 8 | 1 2 2 3 . Device 3 | . 1 1 1 . Storage 2 | 1 1 . . . Processor 1 | . . . 1 . Hackware . | . . . . . Protection 2 | . . 1 1 . Artifact . | . . . . . Weapon 8 | 2 1 5 . . Energy Gun 2 | 1 . 1 . . Energy Cannon 2 | . 1 1 . . Ballistic Gun 2 | 1 . 1 . . Ballistic Cannon . | . . . . . Launcher 2 | . . 2 . . Special Weapon . | . . . . . Impact Weapon . | . . . . . Slashing Weapon . | . . . . . Piercing Weapon . | . . . . . Special Melee Weapon . | . . . . . Unidentified Prototypes 2 | . . 1 . 1 Parts Lost 16 | . 2 3 9 2 Power 4 | . 1 1 2 . Propulsion 4 | . . 1 2 1 Utility 4 | . . . 3 1 Weapon 4 | . 1 1 2 . Highest Loss Streak 8 | . 2 2 8 2 To Critical Strikes . | . . . . . Average Backups 2 | 2 . 1 4 3 Power . | . . . . . Propulsion . | 1 . . 1 . Utility . | . . . 1 1 Weapon . | . . . 1 1 Tool/Special . | . . . . . Unused Backups 5 | . 1 1 1 2 Power . | . . . . . Propulsion 2 | . 1 1 . . Utility 1 | . . . . 1 Weapon 2 | . . . 1 1 Tool/Special . | . . . . . Average Slot Usage (%) 76 | . 89 75 69 29 Engine 8 | . 13 8 . 2 Core 2 | . . 2 6 . Treads 4 | . 6 3 2 1 Leg 7 | . 20 . 1 . Hover 7 | . . 10 14 7 Device 12 | . 7 18 15 1 Storage 5 | . 14 . . . Protection 2 | . . 2 6 7 Energy Gun 5 | . 11 . 7 . Energy Cannon 6 | . 6 9 . . Ballistic Gun 7 | . 9 10 . . Launcher 6 | . . 8 14 . Peak Build Rating 25 | 6 7 19 25 20 Average Rating 10 | 3 6 10 19 10 On Entrance 8 | . 6 7 19 10 Naked Turns 4 | . . . 4 . Heaviest Build 23 | 12 21 19 23 12 Greatest Support 40 | 20 40 40 24 23 Greatest Overweight (x) 5 | . 3 2 5 1 Average Overweight (x) . | . . . . . Largest Inventory Capacity 10 | 8 10 10 5 5 Average Capacity 6 | 6 8 5 5 5 Most Carried 5 | 5 5 5 5 5 Average Carried 2 | 2 . 1 4 3 Final Capacity 10 | 8 10 5 5 5 Final Carried 4 | 1 1 4 3 2 Class Distribution -------------------- 58% | Mutant 19% | Gunner 16% | Tank 4% | Scavenger-Gunner Dominant Class ---------------- Mutant | -10/Materials Gunner | -9/Materials Tank | -8/Materials Mutant | -8/Storage Resources | -11 -10 -9 -8 -8 ----------- Run | Yrd Mat Mat Mat Sto Matter Collected 651 | 133 157 210 151 . Remotely . | . . . . . Salvage Created 633 | . 189 344 100 . Parts 55 | . 12 31 12 . Haulers Intercepted . | . . . . . Recyclers Shooed 1 | . . . 1 . Parts Field Recycled . | . . . . . Retrieved Matter . | . . . . . Parts Self-Destructed . | . . . . . Prevented . | . . . . . Kills | -11 -10 -9 -8 -8 ------- Run | Yrd Mat Mat Mat Sto Combat Hostiles Destroyed 18 | . 4 8 6 . Guns 5 | . 3 . 2 . Cannons 2 | . 1 1 . . AOE 10 | . . 7 3 . Classes Destroyed 8 | . 2 6 . . Worker 3 | . 1 2 . . Builder 3 | . . 1 2 . Recycler 1 | . . 1 . . Operator 1 | . . 1 . . Watcher 2 | . . 2 . . Swarmer 5 | . . 2 3 . Grunt 10 | . 4 3 3 . Sentry 3 | . . 3 . . Best Kill Streak 4 | . 3 4 4 . Combat Bots Only 4 | . 2 4 3 . Max Kills in Single Turn 3 | . 1 3 2 . Gunslinging . | . . . . . Exploded 2 | . . 2 1 . Melee . | . . . . . Uniques/NPCs Destroyed . | . . . . . Combat | -11 -10 -9 -8 -8 -------- Run | Yrd Mat Mat Mat Sto Hostile Shots Fired 231 | . 40 36 146 9 Missed 80 | . 11 15 52 2 Hits 151 | . 29 21 94 7 Projectile 151 | . 29 21 94 7 Critical Strikes 10 | . 2 . 7 1 Damage Taken 2310 | . 399 337 1462 112 Core 707 | . 83 68 512 44 Absorbed by Shields . | . . . . . Core Remaining (%) 83 | 100 66 83 . . Volleys Fired 60 | . 21 16 23 . Largest 3 | . 2 3 1 . Hottest 136 | . 100 136 61 . Shots Fired 81 | . 33 25 23 . Gun 38 | . 19 6 13 . Cannon 23 | . 14 9 . . Launcher 20 | . . 10 10 . Special . | . . . . . Kinetic 10 | . 4 6 . . Thermal 49 | . 29 7 13 . Explosive 20 | . . 10 10 . Electromagnetic 2 | . . 2 . . Robot Hit Streak 10 | . 4 9 10 . Robot Miss Streak 3 | . 3 1 2 . Penetration Max . | . . . . . Secondary Targets . | . . . . . Shots Hit Robots 49 | . 16 19 14 . Core Hits 52 | . 9 26 17 . Critical Kills . | . . . . . Critical Parts Destroyed . | . . . . . Critical Strikes 1 | . . . 1 . Burn 1 | . . . 1 . Melee Attacks . | . . . . . Impact . | . . . . . Slashing . | . . . . . Piercing . | . . . . . Sneak Attacks . | . . . . . Combat Hostiles . | . . . . . Follow-up Attacks . | . . . . . Damage Inflicted 1870 | . 218 813 839 . Guns 371 | . 132 37 202 . Cannons 227 | . 86 141 . . Explosions 1255 | . . 628 627 . Melee . | . . . . . Ramming 17 | . . 7 10 . Kinetic 59 | . 22 37 . . Thermal 503 | . 196 105 202 . Explosive 1255 | . . 628 627 . Electromagnetic 36 | . . 36 . . Impact . | . . . . . Slashing . | . . . . . Piercing . | . . . . . Highest Corruption 1 | . . 1 . . Average Corruption 1 | . . 1 . . Corruption Purged . | . . . . . Corruption Blocked . | . . . . . Effects 3 | . . 3 . . Message Errors 1 | . . 1 . . Matter Fused 1 | . . 1 . . Misfires 1 | . . 1 . . Overload Shots . | . . . . . Overflow Damage 21 | . . 20 1 . Projectiles . | . . . . . Explosions 21 | . . 20 1 . Melee . | . . . . . Knockbacks . | . . . . . Impact . | . . . . . Kinetic . | . . . . . Secondary . | . . . . . Self-Inflicted Damage 110 | . . 3 107 . Shots 5 | . . . 5 . Rammed 8 | . . 2 6 . Targets Rammed 8 | . . 2 6 . Kicked . | . . . . . Crushed . | . . . . . Highest Temperature 340 | . 340 208 137 . Average Temperature 120 | . 183 79 52 . Received Heat Transfer 1065 | . 255 81 684 45 Effects 4 | . 4 . . . Energy Bleed 1 | . 1 . . . Interference 3 | . 3 . . . Siege Activations . | . . . . . Martial Activations . | . . . . . Shielding Activations . | . . . . . Robots Disrupted . | . . . . . Combat Hostiles . | . . . . . Robots Corrupted . | . . . . . Combat Hostiles . | . . . . . Parts Fried . | . . . . . Impact Corruptions . | . . . . . Robots Melted 1 | . . . 1 . Combat Hostiles 1 | . . . 1 . Parts Melted 1 | . . . 1 . Heat Transferred 1175 | . 435 222 518 . Parts Sabotaged . | . . . . . Parts Stolen . | . . . . . Parts Stripped . | . . . . . Power Chain Reactions . | . . . . . Alert | -11 -10 -9 -8 -8 ------- Run | Yrd Mat Mat Mat Sto Maximum Alert Level . | . . . . . Low Security (%) 100 | 100 100 100 100 100 Level 1 . | . . . . . Level 2 . | . . . . . Level 3 . | . . . . . Level 4 . | . . . . . Level 5 . | . . . . . High Security . | . . . . . Max Security . | . . . . . Peak Influence 195 | . 40 179 195 44 Initial 75 | . . . 75 44 Average 37 | . 6 44 93 29 Influence Increases 699 | . 105 344 250 . Destroy 0b10 Robot/C 360 | . 80 160 120 . Destroy 0b10 Robot/NC 50 | . 5 35 10 . Destroy Leader 74 | . 20 44 10 . Disable Machine 90 | . . 45 45 . Destroy Structure 125 | . . 60 65 . Influence Decreases 699 | . 105 165 324 105 Entered New Map 165 | . . . 104 61 Time Decay 383 | . 88 135 130 30 Lost Part 151 | . 17 30 90 14 Squads Dispatched 4 | . 1 . 3 . Investigation 1 | . 1 . . . Extermination . | . . . . . Reinforcement 1 | . . . 1 . Assault . | . . . . . Garrison 2 | . . . 2 . Intercept . | . . . . . Searches Triggered . | . . . . . Construction Impeded 1 | . . . 1 . Haulers Reinforced . | . . . . . Active Scanning Responses . | . . . . . Cargo Convoy Interrupts . | . . . . . Stealth | -11 -10 -9 -8 -8 --------- Run | Yrd Mat Mat Mat Sto Distress Signals 6 | . 1 3 1 1 Communications Jammed . | . . . . . Distress Signals . | . . . . . Times Spotted 49 | . 8 15 23 3 Peak Tracking Total 14 | . 4 5 14 3 Tactical Retreats 6 | . 1 4 1 . Traps | -11 -10 -9 -8 -8 ------- Run | Yrd Mat Mat Mat Sto Traps Triggered 3 | . 3 . . . Indirectly . | . . . . . Trap Hack Attempts . | . . . . . Triggered . | . . . . . Disarmed . | . . . . . Reprogrammed . | . . . . . Reused . | . . . . . Traps Extracted . | . . . . . Installed . | . . . . . Triggered . | . . . . . Machines | -11 -10 -9 -8 -8 ---------- Run | Yrd Mat Mat Mat Sto Machines Disabled 6 | . . 3 3 . Max in Single Turn 2 | . . 1 2 . Machines Repaired . | . . . . . Machines Dismantled . | . . . . . Machines Sabotaged . | . . . . . Overloaded Fab Kills . | . . . . . Hacking | -11 -10 -9 -8 -8 --------- Run | Yrd Mat Mat Mat Sto Machines Accessed 3 | . 1 1 . 1 Terminals 1 | . 1 . . . Fabricators . | . . . . . Repair Stations . | . . . . . Recycling Units 2 | . . 1 . 1 Scanalyzers . | . . . . . Garrison Access . | . . . . . Total Hacks 3 | . 1 1 . 1 Successful 1 | . . . . 1 Failed 2 | . 1 1 . . Catastrophic . | . . . . . Database Lockouts . | . . . . . Manual . | . . . . . Terminals 1 | . 1 . . . Fabricators . | . . . . . Repair Stations . | . . . . . Recycling Units 2 | . . 1 . 1 Scanalyzers . | . . . . . Garrison Access . | . . . . . Terminal Hacks . | . . . . . Fabricator Hacks . | . . . . . Repair Station Hacks . | . . . . . Recycling Unit Hacks 1 | . . . . 1 Retrieve Matter 1 | . . . . 1 Scanalyzer . | . . . . . Garrison Access Hacks . | . . . . . Unauthorized Hacks . | . . . . . Terminals . | . . . . . Fabricators . | . . . . . Repair Stations . | . . . . . Recycling Units . | . . . . . Scanalyzers . | . . . . . Garrison Access . | . . . . . Data Cores Recovered 1 | . . 1 . . Used . | . . . . . Hacking Detections . | . . . . . Full Trace Events . | . . . . . Feedback Events . | . . . . . Feedback Blocked . | . . . . . Robot Schematics Acquired . | . . . . . Robots Built . | . . . . . Authchips . | . . . . . Time . | . . . . . Total Robot Build Rating . | . . . . . Part Schematics Acquired . | . . . . . Parts Built . | . . . . . Authchips . | . . . . . Time . | . . . . . Total Part Build Rating . | . . . . . Parts Repaired . | . . . . . Time . | . . . . . Parts Recycled . | . . . . . Recycled Matter . | . . . . . Retrieved Matter . | . . . . . Retrieved Components . | . . . . . Parts Scanalyzed . | . . . . . Part Schematics Acquired . | . . . . . Parts Damaged . | . . . . . Bothacking | -11 -10 -9 -8 -8 ------------ Run | Yrd Mat Mat Mat Sto Used RIF Installer . | . . . . . Robots Hacked . | . . . . . Non-combat . | . . . . . Combat . | . . . . . Robot Hacks Applied . | . . . . . Relay Couplers Released . | . . . . . Fabnet Peak Effective % . | . . . . . Robots Rewired . | . . . . . Allies Hacked . | . . . . . Hacks Repelled . | . . . . . Allies | -11 -10 -9 -8 -8 -------- Run | Yrd Mat Mat Mat Sto Total Allies . | . . . . . Largest Group . | . . . . . Highest-Rated Group . | . . . . . Highest-Rated Ally . | . . . . . Total Orders . | . . . . . Ally Attacks . | . . . . . Total Damage . | . . . . . Kills . | . . . . . Allies Corrupted . | . . . . . Allies Melted . | . . . . . Intel | -11 -10 -9 -8 -8 ------- Run | Yrd Mat Mat Mat Sto Active Infowar (turns) 931 | . 204 500 155 72 Optics 84 | . . . 12 72 ECM 847 | . 204 500 143 . Robot Analysis Total . | . . . . . Derelict Logs Recovered . | . . . . . Drone Launches . | . . . . . Drone Recoveries . | . . . . . Exploration | -11 -10 -9 -8 -8 ------------- Run | Yrd Mat Mat Mat Sto Turns Passed 1480 | 98 482 558 270 72 Spaces Moved 903 | 86 274 256 192 95 Core 61 | 12 40 . 9 . Treads 128 | . 32 73 19 4 Legs 233 | 30 202 . 1 . Wheels 44 | 44 . . . . Hover 437 | . . 183 163 91 Flight . | . . . . . Fastest Speed 50 | 50 120 56 50 60 Average Speed 111 | 89 142 121 86 68 Slowest Speed 300 | 120 200 180 300 160 Overloaded Moves . | . . . . . Propulsion Burnouts . | . . . . . Robots Hopped . | . . . . . Potential Cave-ins 6 | . . 2 4 . Cave-ins Triggered 1 | . . . 1 . Exploration Rate (%) 22 | 4 38 22 27 23 Regions Visited 4 Branch Regions 1 Pre-discovered Areas . | . . . . . Known Exits Taken . | . . . . . Unknown Exits Taken 4 | 1 1 1 1 . Scrap Searched . | . . . . . Spaces Dug . | . . . . . Terrain Destroyed 155 | . . 62 93 . Melee . | . . . . . Projectile . | . . . . . AOE 155 | . . 62 93 . Terrain Rammed . | . . . . . Walls Destroyed . | . . . . . Machines Disabled . | . . . . . Actions | -11 -10 -9 -8 -8 --------- Run | Yrd Mat Mat Mat Sto Total 1295 | 105 334 481 272 103 Wait 204 | . 4 167 33 . Move 898 | 85 273 255 190 95 Hop . | . . . . . Pick Up 41 | 6 13 14 5 3 Fast Attach 7 | 3 . 3 1 . Attach 27 | 5 7 4 7 4 Detach 5 | 1 1 1 2 . Swap 21 | 3 8 9 1 . Drop 23 | 2 7 10 3 1 Fire 60 | . 21 16 23 . Melee . | . . . . . Ram 6 | . . 2 4 . Kick . | . . . . . Crush 2 | . . . 2 . Escape Stasis 1 | . . . 1 . Rewire . | . . . . . Trap . | . . . . . Miscellaneous . | . . . . . Route ------- -11/Scrapyard -10/Materials -9/Materials -8/Materials -8/Storage History --------- Turn | Location | Event 10 | -11/Scrapyard | Discovered new exit (range 16) 99 | -11/Scrapyard | Entered Materials 100 | -10/Materials | Met a group of wandering Federalists 307 | -10/Materials | Build established: Mutant 418 | -10/Materials | Discovered new exit (range 3) 581 | -10/Materials | Entered another Materials area 581 | -9/Materials | Evolved 2 slots: Propulsion x1, Weapon x1 1078 | -9/Materials | Discovered new exit (range 11) 1139 | -9/Materials | Entered another Materials area 1139 | -8/Materials | Evolved 2 slots: Power x1, Utility x1 1270 | -8/Materials | Garrison activated, responded to threat 1365 | -8/Materials | Crushed by falling debris 1375 | -8/Materials | Core integrity fell below 50% 1389 | -8/Materials | Discovered new exit (range 6) 1404 | -8/Materials | Lost 8 parts (1p2n3u2w) 1405 | -8/Materials | Core integrity fell below 20% 1409 | -8/Materials | Entered Storage 1481 | -8/Storage | Destroyed by Y-45 Defender with Beam Rifle Last Messages --------------- 01401_ Recycling unit begins recycling process. 01401_ Slammed into S-10 Pest. 01402_ Destabilizing: Core damaged (-5). 01402_ Y-45 Defender suffers critical hit (Burn). 01406_ Acquired 102 matter. 01406_ Critical hit (Burn: +37). LOCATION=UNKNOWN GOAL=ESCAPE 01440_ Acquired Hacking Suite. 01442_ Connecting with Recycling Unit... 01442_ Current location identified: Storage 01453_ W-25 Informer sends out distress signal. 01462_ Acquired Prototype Engine. 01463_ Identified Hvy. Ion Engine. 01471_ Acquired Imp. Treads. 01475_ Dropped Airjet. 01475_ Arm. Treads destroyed. 01478_ Insulated Plating destroyed. 01481_ Critical hit (Burn: +37). Map ----- +----------------------------------------------------+ | ?????????????????????????????????????????????### | | ?????????????????????????????????????????????? | | ?????????????????????????????????????????????? | | ?????????????????????????????????????????????? | | ??????????????????????????????????##########??? | | ??????????????????????????????????# #??? | | ??????????????????????????????????#!! """ +???^ | | ??????????????????????????????????#!! """ #???# | | ????????????????????? ???????????#! """ #???# | | ????????????????????? ???????????# #???# | | ????????????????????? ???????????# "" """ #???# | | ????????????????????? ???????????# "Y """ #???# | | ????????????????????? ???????????# "" """ #???# | | ????????????????????# ???????????# #???# | | ????????????????????# ??????##########+######## | | ????????????????????# ??????# #?# | | ???????????????????## ??????# ### | | ?????????????####+## ! ###### + | | ????????????# # ######+#######+ | | ????????????# + #????????# | | ??????????????????## #### # #????????# """ | | ???????????????????##Y######Y# #????????# """ | | ???????????????????# k # #????????# """ | | ???????????????????# # #????????# """ | | ???????????????????# !# #????????# | | ???????????????????# !@! # #????????# | | ???????????????????# # #????????# | | ???????????????????# #######????????###### | | ???????????????????# ! #???????????????????? | | ???????????????????# =a #???????????????????? | | ???????????????????###########???????????????????? | | ?????????????????????????????????????????????????? | | ?????????????????????????????????????????????????? | | | | | | | | | | | | | | | | | | | | | | | | | | | | | | | | | | | +----------------------------------------------------+ Best States ------------- Heat Dissipation 45 Energy Generation 14 Energy Capacity 280 Matter Stores 203 Matter Capacity 300 Sight Range 20 Terrain Scan Density 10 ECM Strength 1 Armor Coverage 150 Resistance: EM 15 Evasion (%) 55 Recoil Reduction 2 Item Schematics ----------------- None Robot Schematics ------------------ None Fabricated ------------ Nothing Repaired ---------- Nothing Alien Tech Used ----------------- None Achievements -------------- Troublemaker Unlikely Earthworm Challenges ------------ None Game ------ Seed HellfireIonCarapace Manual? 0 Play Time 00:41:58 Cumulative 4.7 hours Start 2025.10.14 @ 10:06:34 End 2025.10.14 @ 10:49:04 Sessions 1 Manual Loads 0 Difficulty Rogue Special Mode None Game No. 13 Rogue 13 Adventurer 0 Explorer 0 Win Type - Total 0 Types 0/0/0/0/0/0/0/0/0/0 Lore% 5 Gallery% 6 Achievement% 10 Wizard Run 0 Options --------- Layout 1 ASCII 0 Keyboard 0 Movement Mouse Keybinds 0 Fullscreen 1 Font 24/Smallcaps Map View 50x35 Zoom Use 0% Tactical HUD 1 Map Filters NONE Filters NONE Steam 1 RUN: 92de92c4-5a69-48e9-bf67-022522d181ec